lending/lending_fUSD_20250131
["ID","MTS","AMOUNT","RATE_DAILY","PERIOD"]
[351078960,1738326651016,-154.135675,0.00016575,2]
[351078961,1738326651026,-2411.93,0.00016575,2]
[351078962,1738326651035,-2217.35,0.00016575,2]
[351078963,1738326651046,-605.23,0.00016575,2]
[351078964,1738326651055,-500.0,0.00016575,2]
[351078965,1738326651065,-500.0,0.00016575,2]
[351078966,1738326651074,-500.0,0.00016575,2]
[351078967,1738326651083,-1042.88,0.00016575,2]
[351078968,1738326651092,-500.0,0.00016575,2]
[351078969,1738326651101,-500.0,0.00016575,2]
[351078970,1738326651110,-1176.72,0.00016575,2]
[351078971,1738326651119,-500.0,0.00016575,2]
[351078972,1738326651128,-500.0,0.00016575,2]
[351078973,1738326651138,-1715.86,0.00016575,2]
[351078974,1738326651147,-2038.46,0.00016575,2]
[351078975,1738326651156,-827.6,0.00016575,2]
[351078976,1738326651165,-1855.9,0.00016575,2]
[351078977,1738326651175,-783.11,0.00016575,2]
[351078978,1738326651184,-500.0,0.00016575,2]
[351078979,1738326651194,-500.0,0.00016575,2]
[351078980,1738326651204,-969.33,0.00016575,2]
[351078981,1738326651213,-4237.1,0.00016575,2]
[351078982,1738326651223,-1584.44,0.00016575,2]
[351078983,1738326651232,-2016.11,0.00016575,2]
[351078984,1738326651242,-507.52393824,0.00016575,2]
[351078985,1738326651251,-2479.22,0.00016575,2]
[351078986,1738326651261,-969.44,0.00016575,2]
[351078987,1738326651270,-500.0,0.00016575,2]
[351078988,1738326651279,-500.0,0.00016575,2]
[351078989,1738326651288,-151.0,0.00016575,2]
[351078990,1738326651298,-1149.85,0.00016575,2]
[351078991,1738326651307,-696.96,0.00016575,2]
[351078992,1738326651316,-500.0,0.00016575,2]
[351078993,1738326651325,-886.2,0.00016575,2]
[351078994,1738326651335,-500.0,0.00016575,2]
[351078995,1738326651344,-502.31808261,0.00016575,2]
[351078996,1738326651354,-661.24,0.00016575,2]
[351078997,1738326651366,-1340.07,0.00016575,2]
[351078998,1738326651375,-2614.22,0.00016575,2]
[351078999,1738326651384,-1592.05,0.00016575,2]
[351079000,1738326651394,-784.0,0.00016575,2]
[351079001,1738326651403,-3893.5,0.00016575,2]
[351079002,1738326651412,-861.37,0.00016575,2]
[351079003,1738326651422,-151.0,0.00016575,2]
[351079004,1738326651431,-1234.21,0.00016575,2]
[351079005,1738326651442,-2093.55,0.00016575,2]
[351079006,1738326651452,-545.78,0.00016575,2]
[351079007,1738326651461,-1871.92,0.00016575,2]
[351079008,1738326651470,-1079.17,0.00016575,2]
[351079009,1738326651480,-500.0,0.00016575,2]
[351079010,1738326651489,-500.0,0.00016575,2]
[351079011,1738326651499,-1844.16,0.00016575,2]
[351079012,1738326651508,-3833.57,0.00016575,2]
[351079013,1738326651518,-500.0,0.00016575,2]
[351079014,1738326651527,-151.0,0.00016575,2]
[351079015,1738326651536,-2514.61,0.00016575,2]
[351079016,1738326651546,-1436.42,0.00016575,2]
[351079017,1738326651555,-5425.93,0.00016575,2]
[351079018,1738326651565,-2515.19,0.00016575,2]
[351079019,1738326651575,-500.0,0.00016575,2]
[351079020,1738326651584,-964.92,0.00016575,2]
[351079021,1738326651594,-575.33,0.00016575,2]
[351079022,1738326651603,-2939.07,0.00016575,2]
[351079023,1738326651613,-790.69,0.00016575,2]
[351079024,1738326651622,-2587.16,0.00016575,2]
[351079025,1738326651631,-500.0,0.00016575,2]
[351079026,1738326651641,-1685.54,0.00016575,2]
[351079027,1738326651650,-2582.85,0.00016575,2]
[351079028,1738326651660,-778.72,0.00016575,2]
[351079029,1738326651669,-500.0,0.00016575,2]
[351079030,1738326651679,-664.29,0.00016575,2]
[351079031,1738326651689,-1001.24,0.00016575,2]
[351079032,1738326651699,-500.0,0.00016575,2]
[351079033,1738326651709,-3094.09,0.00016575,2]
[351079034,1738326651718,-5595.54,0.00016575,2]
[351079035,1738326651727,-1093.82,0.00016575,2]
[351079036,1738326651738,-6586.61,0.00016575,2]
[351079037,1738326651747,-2985.13,0.00016575,2]
[351079038,1738326651756,-1377.98,0.00016575,2]
[351079039,1738326651767,-1362.9,0.00016575,2]
[351079040,1738326651776,-2029.22,0.00016575,2]
[351079041,1738326651785,-1074.97,0.00016575,2]
[351079042,1738326651795,-500.0,0.00016575,2]
[351079043,1738326651804,-512.01,0.00016575,2]
[351079044,1738326651814,-2260.49,0.00016575,2]
[351079045,1738326651823,-1351.8,0.00016575,2]
[351079046,1738326651833,-2165.14,0.00016575,2]
[351079047,1738326651842,-2553.37,0.00016575,2]
[351079048,1738326651853,-1353.16,0.00016575,2]
[351079049,1738326651862,-500.0,0.00016575,2]
[351079050,1738326651871,-6719.37,0.00016575,2]
[351079051,1738326651880,-500.0,0.00016575,2]
[351079052,1738326651890,-151.0,0.00016575,2]
[351079053,1738326651900,-747.91,0.00016575,2]
[351079054,1738326651910,-500.0,0.00016575,2]
[351079055,1738326651920,-513.37,0.00016575,2]
[351079056,1738326651930,-500.0,0.00016575,2]
[351079057,1738326651939,-500.0,0.00016575,2]
[351079058,1738326651949,-500.0,0.00016575,2]
[351079059,1738326651958,-2712.92,0.00016575,2]
[351079060,1738326651967,-3385.51,0.00016575,2]
[351079061,1738326651977,-151.0,0.00016575,2]
[351079062,1738326651987,-500.0,0.00016575,2]
[351079063,1738326651996,-3474.04,0.00016575,2]
[351079064,1738326652005,-500.0,0.00016575,2]
[351079065,1738326652014,-1032.79,0.00016575,2]
[351079066,1738326652023,-1171.38,0.00016575,2]
[351079067,1738326652034,-512.74,0.00016575,2]
[351079068,1738326652043,-1656.22,0.00016575,2]
[351079069,1738326652054,-510.44,0.00016575,2]
[351079070,1738326652063,-500.0,0.00016575,2]
[351079071,1738326652073,-500.0,0.00016575,2]
[351079072,1738326652082,-6216.19,0.00016575,2]
[351079073,1738326652091,-500.0,0.00016575,2]
[351079074,1738326652101,-151.0,0.00016575,2]
[351079075,1738326652110,-500.0,0.00016575,2]
[351079076,1738326652119,-500.0,0.00016575,2]
[351079077,1738326652129,-1866.86,0.00016575,2]
[351079078,1738326652138,-500.0,0.00016575,2]
[351079079,1738326652147,-732.56,0.00016575,2]
[351079080,1738326652157,-2228.14,0.00016575,2]
[351079081,1738326652166,-633.1,0.00016575,2]
[351079082,1738326652175,-2302.38,0.00016575,2]
[351079083,1738326652184,-1437.37,0.00016575,2]
[351079084,1738326652194,-3166.28,0.00016575,2]
[351079085,1738326652203,-500.0,0.00016575,2]
[351079086,1738326652213,-2832.15,0.00016575,2]
[351079087,1738326652222,-1313.22,0.00016575,2]
[351079088,1738326652232,-2083.98,0.00016575,2]
[351079089,1738326652243,-500.0,0.00016575,2]
[351079090,1738326652252,-4544.39,0.00016575,2]
[351079091,1738326652262,-1915.53,0.00016575,2]
[351079092,1738326652272,-4066.08,0.00016575,2]
[351079093,1738326652281,-500.0,0.00016575,2]
[351079094,1738326652291,-946.4,0.00016575,2]
[351079095,1738326652300,-500.0,0.00016575,2]
[351079096,1738326652309,-500.0,0.00016575,2]
[351079097,1738326652319,-500.0,0.00016575,2]
[351079098,1738326652329,-893.28,0.00016575,2]
[351079099,1738326652338,-710.96,0.00016575,2]
[351079100,1738326652348,-1210.85,0.00016575,2]
[351079101,1738326652357,-10975.61,0.00016575,2]
[351079102,1738326652372,-500.0,0.00016575,2]
[351079103,1738326652383,-500.0,0.00016575,2]
[351079104,1738326652393,-890.65,0.00016575,2]
[351079105,1738326652404,-151.0,0.00016575,2]
[351079106,1738326652414,-12807.63,0.00016575,2]
[351079107,1738326652423,-6528.92,0.00016575,2]
[351079108,1738326652432,-1476.65,0.00016575,2]
[351079109,1738326652444,-500.0,0.00016575,2]
[351079110,1738326652454,-500.0,0.00016575,2]
[351079111,1738326652464,-5108.04,0.00016575,2]
[351079112,1738326652474,-187.266091,0.00016575,2]
[351079113,1738326652484,-1987.9,0.00016575,2]
[351079114,1738326652495,-500.0,0.00016575,2]
[351079115,1738326652505,-1082.85,0.00016575,2]
[351079116,1738326652515,-500.0,0.00016575,2]
[351079117,1738326652525,-500.0,0.00016575,2]
[351079118,1738326652535,-1419.61,0.00016575,2]
[351079119,1738326652545,-500.0,0.00016575,2]
[351079120,1738326652555,-530.05293301,0.00016575,2]
[351079121,1738326652564,-585.69,0.00016575,2]
[351079122,1738326652574,-500.0,0.00016575,2]
[351079123,1738326652584,-2000.0,0.00016602,2]
[351079124,1738326652593,-200.0,0.00016602,2]
[351079125,1738326652602,-161.76592733,0.00016612,2]
[351079126,1738326652612,-156.66,0.00016658,30]
[351079127,1738326652621,-1009.11,0.00016711,2]
[351079128,1738326652631,-1009.11,0.00016711,2]
[351079129,1738326652642,-1009.11,0.00016711,2]
[351079130,1738326652651,-1009.11,0.00016711,2]
[351079131,1738326652661,-869.239506,0.00016712,2]
[351079132,1738326652670,-500.0,0.00016712,2]
[351079133,1738326652680,-500.0,0.00016712,2]
[351079134,1738326652689,-500.0,0.00016712,2]
[351079135,1738326652699,-500.0,0.00016712,2]
[351079136,1738326652708,-1361.72118,0.00016712,2]
[351079137,1738326652717,-500.0,0.00016712,2]
[351079138,1738326652727,-500.0,0.00016712,2]
[351079139,1738326652737,-500.0,0.00016712,2]
[351079140,1738326652746,-500.0,0.00016712,2]
[351079141,1738326652755,-500.0,0.00016712,2]
[351079142,1738326652765,-500.0,0.00016712,2]
[351079143,1738326652774,-500.0,0.00016712,2]
[351079144,1738326652783,-500.0,0.00016712,2]
[351079145,1738326652793,-523.62,0.00016712,2]
[351079146,1738326652803,-500.0,0.00016712,2]
[351079147,1738326652812,-500.0,0.00016712,2]
[351079148,1738326652820,-500.0,0.00016712,2]
[351079149,1738326652830,-500.0,0.00016712,2]
[351079150,1738326652839,-500.0,0.00016712,2]
[351079151,1738326652848,-500.0,0.00016712,2]
[351079152,1738326652857,-500.0,0.00016712,2]
[351079153,1738326652866,-500.0,0.00016712,2]
[351079154,1738326652876,-658.86,0.00016712,2]
[351079155,1738326653154,-500.0,0.00016712,2]
[351079156,1738326653164,-500.0,0.00016712,2]
[351079157,1738326653174,-500.0,0.00016712,2]
[351079158,1738326653183,-500.0,0.00016712,2]
[351079159,1738326653192,-500.0,0.00016712,2]
[351079160,1738326653202,-500.0,0.00016712,2]
[351079161,1738326653211,-706.56,0.00016712,2]
[351079162,1738326653220,-500.0,0.00016712,2]
[351079163,1738326653229,-500.0,0.00016712,2]
[351079164,1738326653239,-500.0,0.00016712,2]
[351079165,1738326653248,-731.02,0.00016712,2]
[351079166,1738326653257,-500.0,0.00016712,2]
[351079167,1738326653267,-500.0,0.00016712,2]
[351079168,1738326653276,-500.0,0.00016712,2]
[351079169,1738326653285,-500.0,0.00016712,2]
[351079170,1738326653294,-500.0,0.00016712,2]
[351079171,1738326653303,-500.0,0.00016712,2]
[351079172,1738326653313,-500.0,0.00016712,2]
[351079173,1738326653322,-500.0,0.00016712,2]
[351079174,1738326653332,-500.0,0.00016712,2]
[351079175,1738326653342,-500.0,0.00016712,2]
[351079176,1738326653351,-1266.277,0.00016712,2]
[351079177,1738326653364,-500.0,0.00016712,2]
[351079178,1738326653374,-500.0,0.00016712,2]
[351079179,1738326653383,-807.59,0.00016712,2]
[351079180,1738326653393,-500.0,0.00016712,2]
[351079181,1738326653402,-500.0,0.00016712,2]
[351079182,1738326653411,-569.61,0.00016712,2]
[351079183,1738326653421,-500.0,0.00016712,2]
[351079184,1738326653430,-500.0,0.00016712,2]
[351079185,1738326653440,-464.58094647,0.00016712,2]
[351079186,1738326653449,-514.74,0.00016712,2]
[351079187,1738326653459,-500.0,0.00016712,2]
[351079188,1738326653469,-500.0,0.00016712,2]
[351079189,1738326653478,-500.0,0.00016712,2]
[351079190,1738326653488,-1401.31,0.00016712,2]
[351079191,1738326653497,-500.0,0.00016712,2]
[351079192,1738326653507,-403.07534671,0.00016712,2]
[351079193,1738326653516,-500.0,0.00016712,2]
[351079194,1738326653525,-500.0,0.00016712,2]
[351079195,1738326653535,-790.91,0.00016712,2]
[351079196,1738326653545,-500.0,0.00016712,2]
[351079197,1738326653555,-500.0,0.00016712,2]
[351079198,1738326653564,-500.0,0.00016712,2]
[351079199,1738326653574,-1667.8,0.00016712,2]
[351079200,1738326653584,-500.0,0.00016712,2]
[351079201,1738326653594,-1045.53,0.00016712,2]
[351079202,1738326653604,-500.0,0.00016712,2]
[351079203,1738326653614,-500.0,0.00016712,2]
[351079204,1738326653623,-500.0,0.00016712,2]
[351079205,1738326653633,-500.0,0.00016712,2]
[351079206,1738326653643,-500.0,0.00016712,2]
[351079207,1738326653652,-570.25,0.00016712,2]
[351079208,1738326653662,-1240.4,0.00016712,2]
[351079209,1738326653673,-812.59,0.00016712,2]
[351079210,1738326653682,-500.0,0.00016712,2]
[351079211,1738326653692,-500.0,0.00016712,2]
[351079212,1738326653702,-500.0,0.00016712,2]
[351079213,1738326653711,-500.0,0.00016712,2]
[351079214,1738326653721,-500.0,0.00016712,2]
[351079215,1738326653731,-500.0,0.00016712,2]
[351079216,1738326653742,-500.0,0.00016712,2]
[351079217,1738326653752,-500.0,0.00016712,2]
[351079218,1738326653762,-689.6,0.00016712,2]
[351079219,1738326653772,-500.0,0.00016712,2]
[351079220,1738326653781,-500.0,0.00016712,2]
[351079221,1738326653791,-500.0,0.00016712,2]
[351079222,1738326653801,-500.0,0.00016712,2]
[351079223,1738326653811,-500.0,0.00016712,2]
[351079224,1738326653822,-910.39,0.00016712,2]
[351079225,1738326653832,-500.0,0.00016712,2]
[351079226,1738326653841,-904.35,0.00016712,2]
[351079227,1738326653852,-689.96,0.00016712,2]
[351079228,1738326653861,-1243.74,0.00016712,2]
[351079229,1738326653871,-500.0,0.00016712,2]
[351079230,1738326653880,-500.0,0.00016712,2]
[351079231,1738326653890,-731.84,0.00016712,2]
[351079232,1738326653899,-544.01,0.00016712,2]
[351079233,1738326653908,-331.00390144,0.00016712,2]
[351079234,1738326653918,-500.0,0.00016712,2]
[351079235,1738326653928,-500.0,0.00016712,2]
[351079236,1738326653937,-500.0,0.00016712,2]
[351079237,1738326653946,-500.0,0.00016712,2]
[351079238,1738326653955,-500.0,0.00016712,2]
[351079239,1738326653964,-1184.32,0.00016712,2]
[351079240,1738326653974,-521.46,0.00016712,2]
[351079241,1738326653984,-629.74,0.00016712,2]
[351079242,1738326653994,-542.88312036,0.00016712,2]
[351079243,1738326654004,-500.0,0.00016712,2]
[351079244,1738326654013,-962.35,0.00016712,2]
[351079245,1738326654022,-500.0,0.00016712,2]
[351079246,1738326654032,-500.0,0.00016712,2]
[351079247,1738326654041,-500.0,0.00016712,2]
[351079248,1738326654050,-733.72,0.00016712,2]
[351079249,1738326654059,-453.95754101,0.00016712,2]
[351079250,1738326654068,-500.0,0.00016712,2]
[351079251,1738326654077,-2308.58,0.00016712,2]
[351079252,1738326654087,-639.9,0.00016712,2]
[351079253,1738326654096,-500.0,0.00016712,2]
[351079254,1738326654105,-1198.14,0.00016712,2]
[351079255,1738326654115,-504.46,0.00016712,2]
[351079256,1738326654125,-851.17,0.00016712,2]
[351079257,1738326654134,-382.1473328,0.00016712,2]
[351079258,1738326654144,-500.0,0.00016712,2]
[351079259,1738326654153,-500.0,0.00016712,2]
[351079260,1738326654163,-500.0,0.00016712,2]
[351079261,1738326654172,-600.74,0.00016712,2]
[351079262,1738326654181,-733.21,0.00016712,2]
[351079263,1738326654190,-500.0,0.00016712,2]
[351079264,1738326654201,-500.0,0.00016712,2]
[351079265,1738326654210,-500.0,0.00016712,2]
[351079266,1738326654219,-579.87,0.00016712,2]
[351079267,1738326654229,-500.0,0.00016712,2]
[351079268,1738326654239,-500.0,0.00016712,2]
[351079269,1738326654248,-500.0,0.00016712,2]
[351079270,1738326654258,-1059.07,0.00016712,2]
[351079271,1738326654267,-500.0,0.00016712,2]
[351079272,1738326654277,-739.89,0.00016712,2]
[351079273,1738326654286,-500.0,0.00016712,2]
[351079274,1738326654295,-500.0,0.00016712,2]
[351079275,1738326654306,-500.0,0.00016712,2]
[351079276,1738326654316,-975.26,0.00016712,2]
[351079277,1738326654327,-894.65,0.00016712,2]
[351079278,1738326654337,-623.28,0.00016712,2]
[351079279,1738326654347,-722.08,0.00016712,2]
[351079280,1738326654358,-500.0,0.00016712,2]
[351079281,1738326654372,-662.55,0.00016712,2]
[351079282,1738326654381,-150.38479784,0.00016712,2]
[351079283,1738326654391,-500.0,0.00016712,2]
[351079284,1738326654402,-1568.48,0.00016712,2]
[351079285,1738326654411,-500.0,0.00016712,2]
[351079286,1738326654421,-500.0,0.00016712,2]
[351079287,1738326654430,-500.0,0.00016712,2]
[351079288,1738326654440,-581.28,0.00016712,2]
[351079289,1738326654450,-500.0,0.00016712,2]
[351079290,1738326654459,-943.51,0.00016712,2]
[351079291,1738326654469,-500.0,0.00016712,2]
[351079292,1738326654478,-528.65,0.00016712,2]
[351079293,1738326654489,-938.62,0.00016712,2]
[351079294,1738326654498,-782.18,0.00016712,2]
[351079295,1738326654507,-632.4,0.00016712,2]
[351079296,1738326654516,-500.0,0.00016712,2]
[351079297,1738326654525,-500.0,0.00016712,2]
[351079298,1738326654534,-500.0,0.00016712,2]
[351079299,1738326654544,-500.0,0.00016712,2]
[351079300,1738326654554,-637.51,0.00016712,2]
[351079301,1738326654564,-508.46,0.00016712,2]
[351079302,1738326654573,-500.0,0.00016712,2]
[351079303,1738326654582,-531.47,0.00016712,2]
[351079304,1738326654592,-500.0,0.00016712,2]
[351079305,1738326654602,-506.73037324,0.00016712,2]
[351079306,1738326654611,-500.0,0.00016712,2]
[351079307,1738326654621,-1283.01,0.00016712,2]
[351079308,1738326654630,-697.34,0.00016712,2]
[351079309,1738326654639,-500.0,0.00016712,2]
[351079310,1738326654648,-1136.87,0.00016712,2]
[351079311,1738326654657,-1343.73,0.00016712,2]
[351079312,1738326654666,-753.65,0.00016712,2]
[351079313,1738326654675,-500.0,0.00016712,2]
[351079314,1738326654684,-500.0,0.00016712,2]
[351079315,1738326654693,-500.0,0.00016712,2]
[351079316,1738326654702,-500.0,0.00016712,2]
[351079317,1738326654711,-599.34,0.00016712,2]
[351079318,1738326654720,-807.7,0.00016712,2]
[351079319,1738326654730,-500.0,0.00016712,2]
[351079320,1738326654741,-500.0,0.00016712,2]
[351079321,1738326654750,-750.91,0.00016712,2]
[351079322,1738326654760,-1476.1,0.00016712,2]
[351079323,1738326654769,-500.0,0.00016712,2]
[351079324,1738326654779,-500.0,0.00016712,2]
[351079325,1738326654788,-797.58,0.00016712,2]
[351079326,1738326654797,-500.0,0.00016712,2]
[351079327,1738326654807,-742.91,0.00016712,2]
[351079328,1738326654816,-1071.73,0.00016712,2]
[351079329,1738326654826,-531.07,0.00016712,2]
[351079330,1738326654835,-525.8,0.00016712,2]
[351079331,1738326654845,-500.0,0.00016712,2]
[351079332,1738326654855,-500.0,0.00016712,2]
[351079333,1738326654864,-375.00924363,0.00016712,2]
[351079334,1738326654874,-500.0,0.00016712,2]
[351079335,1738326654883,-500.0,0.00016712,2]
[351079336,1738326654892,-500.0,0.00016712,2]
[351079337,1738326654902,-726.21,0.00016712,2]
[351079338,1738326654913,-500.0,0.00016712,2]
[351079339,1738326654922,-546.44095359,0.00016712,2]
[351079340,1738326654933,-848.51,0.00016712,2]
[351079341,1738326654943,-500.0,0.00016712,2]
[351079342,1738326654953,-500.0,0.00016712,2]
[351079343,1738326654962,-342.43,0.00016712,2]
[351079344,1738326654971,-500.0,0.00016712,2]
[351079345,1738326654980,-611.63,0.00016712,2]
[351079346,1738326654990,-500.0,0.00016712,2]
[351079347,1738326654999,-527.41,0.00016712,2]
[351079348,1738326655009,-500.0,0.00016712,2]
[351079349,1738326655018,-500.0,0.00016712,2]
[351079350,1738326655027,-500.0,0.00016712,2]
[351079351,1738326655036,-500.0,0.00016712,2]
[351079352,1738326655046,-500.0,0.00016712,2]
[351079353,1738326655055,-773.23,0.00016712,2]
[351079354,1738326655064,-391.28706192,0.00016712,2]
[351079355,1738326655074,-500.0,0.00016712,2]
[351079356,1738326655083,-500.0,0.00016712,2]
[351079357,1738326655092,-534.44,0.00016712,2]
[351079358,1738326655101,-500.0,0.00016712,2]
[351079359,1738326655110,-500.0,0.00016712,2]
[351079360,1738326655120,-825.72,0.00016712,2]
[351079361,1738326655129,-616.11,0.00016712,2]
[351079362,1738326655138,-500.0,0.00016712,2]
[351079363,1738326655148,-500.0,0.00016712,2]
[351079364,1738326655157,-500.0,0.00016712,2]
[351079365,1738326655167,-774.25,0.00016712,2]
[351079366,1738326655176,-653.54,0.00016712,2]
[351079367,1738326655185,-992.13,0.00016712,2]
[351079368,1738326655195,-500.0,0.00016712,2]
[351079369,1738326655204,-500.0,0.00016712,2]
[351079370,1738326655213,-893.92,0.00016712,2]
[351079371,1738326655222,-500.0,0.00016712,2]
[351079372,1738326655232,-151.219778,0.00016712,2]
[351079373,1738326655245,-500.0,0.00016712,2]
[351079374,1738326655254,-500.0,0.00016712,2]
[351079375,1738326655264,-500.0,0.00016712,2]
[351079376,1738326655273,-500.0,0.00016712,2]
[351079377,1738326655282,-581.26,0.00016712,2]
[351079378,1738326655291,-500.0,0.00016712,2]
[351079379,1738326655301,-1372.62,0.00016712,2]
[351079380,1738326655310,-563.57,0.00016712,2]
[351079381,1738326655319,-717.67,0.00016712,2]
[351079382,1738326655329,-778.8,0.00016712,2]
[351079383,1738326655338,-944.3,0.00016712,2]
[351079384,1738326655348,-586.81,0.00016712,2]
[351079385,1738326655359,-687.8,0.00016712,2]
[351079386,1738326655372,-500.0,0.00016712,2]
[351079387,1738326655381,-2619.13,0.00016712,2]
[351079388,1738326655391,-500.0,0.00016712,2]
[351079389,1738326655400,-500.0,0.00016712,2]
[351079390,1738326655410,-738.82,0.00016712,2]
[351079391,1738326655420,-216.73719854,0.00016712,2]
[351079392,1738326655429,-708.5,0.00016712,2]
[351079393,1738326655438,-854.04,0.00016712,2]
[351079394,1738326655449,-1836.98,0.00016712,2]
[351079395,1738326655459,-369.40575271,0.00016712,2]
[351079396,1738326655524,-1220.54,0.00016712,2]
[351079397,1738326655534,-500.0,0.00016712,2]
[351079398,1738326655544,-843.1,0.00016712,2]
[351079399,1738326655554,-500.0,0.00016712,2]
[351079400,1738326655564,-1314.37,0.00016712,2]
[351079401,1738326655573,-500.0,0.00016712,2]
[351079402,1738326655583,-908.51,0.00016712,2]
[351079403,1738326655592,-500.0,0.00016712,2]
[351079404,1738326655601,-862.58,0.00016712,2]
[351079405,1738326655611,-500.0,0.00016712,2]
[351079406,1738326655621,-1105.52,0.00016712,2]
[351079407,1738326655630,-773.46,0.00016712,2]
[351079408,1738326655639,-693.93,0.00016712,2]
[351079409,1738326655648,-500.0,0.00016712,2]
[351079410,1738326655657,-594.11,0.00016712,2]
[351079411,1738326655666,-500.0,0.00016712,2]
[351079412,1738326655675,-4624.11,0.00016712,2]
[351079413,1738326655684,-1712.74,0.00016712,2]
[351079414,1738326655693,-3138.2,0.00016712,2]
[351079415,1738326655702,-500.0,0.00016712,2]
[351079416,1738326655711,-151.219778,0.00016712,2]
[351079417,1738326655720,-1334.53,0.00016712,2]
[351079418,1738326655729,-544.98,0.00016712,2]
[351079419,1738326655737,-1396.15,0.00016712,2]
[351079420,1738326655748,-500.0,0.00016712,2]
[351079421,1738326655757,-640.46,0.00016712,2]
[351079422,1738326655766,-1336.46,0.00016712,2]
[351079423,1738326655775,-500.0,0.00016712,2]
[351079424,1738326655783,-690.6,0.00016712,2]
[351079425,1738326655793,-6860.94,0.00016712,2]
[351079426,1738326655802,-733.19,0.00016712,2]
[351079427,1738326655811,-500.0,0.00016712,2]
[351079428,1738326655822,-609.97,0.00016712,2]
[351079429,1738326655831,-1196.9,0.00016712,2]
[351079430,1738326655840,-500.0,0.00016712,2]
[351079431,1738326655850,-849.45,0.00016712,2]
[351079432,1738326655859,-500.0,0.00016712,2]
[351079433,1738326655868,-500.0,0.00016712,2]
[351079434,1738326655878,-2457.42,0.00016712,2]
[351079435,1738326655887,-982.87,0.00016712,2]
[351079436,1738326655896,-500.0,0.00016712,2]
[351079437,1738326655905,-380.65884931,0.00016712,2]
[351079438,1738326655915,-1442.05,0.00016712,2]
[351079439,1738326655924,-2083.65,0.00016712,2]
[351079440,1738326655933,-943.84,0.00016712,2]
[351079441,1738326655943,-500.0,0.00016712,2]
[351079442,1738326655952,-500.0,0.00016712,2]
[351079443,1738326655962,-500.0,0.00016712,2]
[351079444,1738326655971,-500.0,0.00016712,2]
[351079445,1738326655980,-4027.64,0.00016712,2]
[351079446,1738326655990,-1015.62,0.00016712,2]
[351079447,1738326656000,-584.56770077,0.00016712,2]
[351079448,1738326656009,-867.63,0.00016712,2]
[351079449,1738326656018,-1382.17,0.00016712,2]
[351079450,1738326656028,-506.55735995,0.00016712,2]
[351079451,1738326656036,-876.78,0.00016712,2]
[351079452,1738326656046,-955.62,0.00016712,2]
[351079453,1738326656055,-943.84,0.00016712,2]
[351079454,1738326656064,-879.0,0.00016712,2]
[351079455,1738326656073,-500.0,0.00016712,2]
[351079456,1738326656082,-1445.88,0.00016712,2]
[351079457,1738326656091,-554.03,0.00016712,2]
[351079458,1738326656099,-2222.76,0.00016712,2]
[351079459,1738326656108,-500.0,0.00016712,2]